bitfinex/quotes_ETHUSD_20250220
["timestamp","ask_amount","ask_price","bid_price","bid_amount"]
[1740072193581,4.41456,2730.4,2730.0,3.66293]
[1740072193815,0.7521,2730.4,2730.0,7.32586]
[1740072193983,0.7521,2730.4,2730.0,3.66293]
[1740072194755,4.41457,2730.4,2730.0,3.66293]
[1740072195263,4.41457,2730.4,2729.9,0.272]
[1740072195264,0.7521,2730.4,2729.9,0.272]
[1740072195451,4.41456,2730.4,2729.9,0.272]
[1740072195655,9.55336,2730.4,2729.9,3.93507]
[1740072196385,3.66261,2730.3,2729.9,3.93507]
[1740072196681,3.69909828,2730.3,2729.9,0.272]
[1740072197382,3.69909828,2730.3,2729.8,3.66317]
[1740072197603,4.41875,2730.1,2729.6,8.229]
[1740072197883,0.7886,2729.8,2729.6,8.229]
[1740072198087,3.6634,2729.7,2729.6,8.229]
[1740072198285,9.5908,2729.7,2729.6,8.229]
[1740072198589,14.38833773,2729.7,2729.6,8.229]
[1740072198804,10.916207,2729.7,2729.6,8.229]
[1740072199394,14.38833773,2729.7,2729.6,8.229]
[1740072204367,14.93833773,2729.7,2729.6,8.229]
[1740072204991,10.1408,2729.7,2729.6,8.229]
[1740072205206,9.5908,2729.7,2729.6,8.229]
[1740072205911,10.1408,2729.7,2729.6,8.229]
[1740072207286,5.9274,2729.7,2729.6,8.229]
[1740072207606,9.5908,2729.7,2729.6,8.229]
[1740072207806,5.1388,2729.7,2729.6,8.229]
[1740072208007,5.1388,2729.7,2729.6,9.418271]
[1740072208430,8.8022,2729.7,2729.6,9.418271]
[1740072208635,5.1388,2729.7,2729.6,9.418271]
[1740072209311,5.1388,2729.7,2729.6,10.236171]
[1740072209710,5.1388,2729.7,2729.6,2.007171]
[1740072209903,5.1388,2729.7,2729.6,0.8179]
[1740072210076,5.1388,2729.7,2729.4,3.66373]
[1740072211098,5.1388,2729.7,2729.2,4.49206]
[1740072211099,8.80225,2729.7,2729.2,4.49206]
[1740072211301,3.66354,2729.6,2729.2,4.49206]
[1740072211512,0.81,2729.6,2729.1,4.40350641]
[1740072211693,3.42293,2729.5,2729.1,2.13845583]
[1740072211890,0.81,2729.6,2729.2,3.66405]
[1740072212713,0.81,2729.6,2729.1,5.80265583]
[1740072213022,3.66369,2729.5,2729.1,5.80265583]
[1740072213423,4.47354,2729.6,2729.2,3.66404]
[1740072213915,5.1388,2729.7,2729.2,3.66404]
[1740072214118,2.9488,2729.7,2729.3,3.66386]
[1740072214488,2.9488,2729.7,2729.6,3.66354]
[1740072214693,2.9488,2729.7,2729.5,3.66367]
[1740072214923,2.9488,2729.7,2729.4,4.4748]
[1740072215117,2.9488,2729.7,2729.5,0.813864]
[1740072215791,2.9488,2729.7,2729.2,1.85051958]
[1740072215792,6.61221,2729.7,2729.2,1.85051958]
[1740072215991,3.66356,2729.6,2729.2,5.51458958]
[1740072216191,2.9488,2729.7,2729.2,5.51458958]
[1740072216418,3.66354,2729.6,2729.2,5.51458958]
[1740072217098,4.45844,2729.6,2729.2,5.51458958]
[1740072217312,0.7949,2729.6,2729.1,0.73933641]
[1740072217622,3.66368,2729.5,2729.1,0.73933641]
[1740072218001,3.66368,2729.5,2729.0,12.16728]
[1740072218202,3.66368,2729.5,2729.0,12.90713767]
[1740072218398,3.66368,2729.5,2729.1,3.66418]
[1740072218710,4.45854,2729.6,2729.1,1.74017177]
[1740072219024,4.49502828,2729.6,2729.1,5.40431177]
[1740072219226,4.45854,2729.6,2729.1,5.40431177]
[1740072219414,4.49502828,2729.6,2729.1,5.40431177]
[1740072219590,4.45854,2729.6,2729.1,5.40431177]
[1740072219791,4.49502828,2729.6,2729.2,0.64161694]
[1740072220015,4.45852,2729.6,2729.2,4.30567694]
[1740072220492,4.45852,2729.6,2729.2,0.64161694]
[1740072220922,3.66373,2729.5,2729.0,1.01185767]
[1740072221120,3.66373,2729.5,2729.0,4.67608767]
[1740072221327,3.66373,2729.5,2729.0,8.34033767]
[1740072221622,3.66373,2729.5,2729.0,4.67608767]
[1740072221793,3.66373,2729.5,2729.1,3.66421]
[1740072221994,3.66373,2729.5,2729.1,0.91706977]
[1740072222220,3.66383,2729.4,2729.1,0.91706977]
[1740072222733,3.66367,2729.5,2729.1,4.58125977]
[1740072223390,3.66367,2729.5,2729.1,0.91706977]
[1740072223594,4.45854,2729.6,2729.0,4.67617767]
[1740072223806,4.45851,2729.6,2729.1,3.66413]
[1740072224021,3.66369,2729.5,2729.0,8.34043767]
[1740072224214,3.66369,2729.5,2729.0,4.67611767]
[1740072224727,3.66369,2729.5,2729.1,0.17971422]
[1740072225130,0.7949,2729.6,2729.1,0.17971422]
[1740072225425,3.66373,2729.5,2729.1,3.84385422]
[1740072225994,3.66382,2729.4,2729.1,0.17971422]
[1740072226926,3.66382,2729.4,2729.0,4.40418767]
[1740072227116,3.66382,2729.4,2729.0,5.32129944]
[1740072228423,3.664,2729.3,2729.0,1.65696944]
[1740072228626,3.664,2729.3,2729.0,0.91711177]
[1740072229919,3.66389,2729.4,2729.0,0.91711177]
[1740072230124,3.66389,2729.4,2729.1,0.18009213]
[1740072230327,3.66367,2729.5,2729.1,0.18009213]
[1740072230490,3.66386,2729.4,2729.1,0.18009213]
[1740072230698,3.66386,2729.4,2729.1,0.86741096]
[1740072230891,3.66369,2729.5,2729.1,0.86741096]
[1740072231092,2.9488,2729.7,2729.2,4.47044]
[1740072231361,2.9488,2729.7,2729.3,3.66393]
[1740072231525,6.61229,2729.7,2729.2,4.47056]
[1740072231727,10.27577,2729.7,2729.3,0.51578788]
[1740072231927,6.61228,2729.7,2729.3,0.51578788]
[1740072232135,3.66354,2729.6,2729.3,0.51578788]
[1740072233637,3.66368,2729.5,2729.0,3.66424]
[1740072233800,3.66371,2729.5,2729.1,3.66418]
[1740072234304,3.66354,2729.6,2729.1,3.66418]
[1740072234505,3.6637,2729.5,2729.0,3.66432]
[1740072234724,3.6637,2729.5,2729.1,0.90955477]
[1740072235737,3.6637,2729.5,2729.2,0.18014163]
[1740072236738,3.66382,2729.4,2729.2,0.18014163]
[1740072237618,3.66382,2729.4,2729.0,3.93528]
[1740072237940,4.42495,2729.5,2729.0,3.93528]
[1740072238140,3.66383,2729.4,2729.1,0.54301277]
[1740072238437,0.7612,2729.5,2729.1,0.54301277]
[1740072238641,3.66386,2729.4,2729.0,0.271]
[1740072238868,3.66386,2729.4,2729.0,3.93529]
[1740072239228,3.66386,2729.4,2729.0,0.271]
[1740072240206,3.66386,2729.4,2729.1,0.18031578]
[1740072241243,7.32778,2729.4,2729.1,0.18031578]
[1740072241403,3.66386,2729.4,2729.1,0.18031578]
[1740072241606,7.32777,2729.4,2729.1,0.18031578]
[1740072241802,3.66396,2729.3,2729.0,0.271]
[1740072242103,3.66386,2729.4,2729.0,4.84476977]
[1740072242307,3.66386,2729.4,2729.0,1.18048977]
[1740072242502,4.42489,2729.5,2729.0,7.59951]
[1740072242724,3.66387,2729.4,2729.0,3.93525]
[1740072243054,3.66387,2729.4,2729.0,0.271]
[1740072243252,3.66394,2729.3,2729.0,0.271]
[1740072245941,3.66394,2729.3,2729.1,0.18040252]
[1740072246953,3.664,2729.3,2729.1,0.18040252]
[1740072247827,4.42495,2729.5,2729.1,0.18040252]
[1740072248057,3.66375,2729.5,2729.1,3.66414]
[1740072248258,3.66375,2729.5,2729.0,3.93531]
[1740072248435,3.7431,2729.7,2729.0,3.93531]
[1740072248436,3.66397,2729.3,2729.0,1.18335804]
[1740072248755,3.66397,2729.3,2729.0,0.271]
[1740072249143,3.66397,2729.3,2728.9,0.7737]
[1740072249336,7.32803,2729.3,2728.9,1.0447]
[1740072249543,3.66408,2729.2,2728.9,1.0447]
[1740072249743,3.66428,2729.1,2728.7,0.7577]
[1740072249952,4.48924,2728.9,2728.5,8.9897]
[1740072250171,3.40134683,2729.1,2728.5,8.232]
[1740072250462,3.66454,2728.9,2728.5,8.232]
[1740072251028,3.66454,2728.9,2728.6,0.18054996]
[1740072251533,3.66474,2728.7,2728.6,0.18054996]
[1740072251759,3.66454,2728.9,2728.6,0.18054996]
[1740072252065,4.77791283,2728.9,2728.6,0.18054996]
[1740072252446,1.11337283,2728.9,2728.6,0.18054996]
[1740072252647,3.66436,2729.0,2728.5,8.232]
[1740072252846,3.66448,2728.9,2728.5,8.232]
[1740072253565,7.43271,2729.1,2728.5,8.232]
[1740072253776,3.66444,2729.0,2728.5,8.232]
[1740072254148,7.43271,2729.1,2728.5,8.232]
[1740072254347,12.55392207,2729.1,2728.5,8.232]
[1740072254550,8.88959207,2729.1,2728.5,8.232]
[1740072254950,5.22528207,2729.1,2728.6,3.66482]
[1740072255154,2.9488,2729.1,2728.8,3.6646]
[1740072255558,2.9488,2729.1,2728.8,3.66454]
[1740072256258,2.9488,2729.1,2728.7,4.47309]
[1740072256658,2.9488,2729.1,2728.8,3.66454]
[1740072257278,2.9488,2729.1,2728.9,3.66448]
[1740072257445,0.0472,2729.4,2729.0,1.132648]
[1740072257645,0.0472,2729.4,2729.2,3.66404]
[1740072257950,0.0472,2729.4,2729.3,3.66394]
[1740072258280,0.0472,2729.4,2729.1,3.84440482]
[1740072258596,0.0472,2729.4,2729.1,0.18027482]
[1740072259581,0.0472,2729.4,2729.0,1.0372]
[1740072259745,0.0472,2729.4,2729.0,5.20045191]
[1740072260189,0.0472,2729.4,2729.0,1.53620191]
[1740072260478,0.0472,2729.4,2729.0,5.94229954]
[1740072260997,0.55,2729.2,2728.8,0.2884591]
[1740072261199,3.66448,2728.9,2728.8,0.2884591]
[1740072262683,3.66448,2728.9,2728.5,8.232]
[1740072262882,3.66467,2728.8,2728.5,8.232]
[1740072263079,0.787,2728.7,2728.5,8.232]
[1740072263278,0.82348828,2728.7,2728.5,8.232]
[1740072263518,0.787,2728.7,2728.5,8.232]
[1740072263819,0.82348828,2728.7,2728.5,8.232]
[1740072264017,0.787,2728.7,2728.5,8.232]
[1740072264193,4.45176,2728.7,2728.5,8.232]
[1740072264401,3.66488,2728.6,2728.5,8.232]
[1740072265111,6.61368,2728.6,2728.5,8.232]
[1740072267282,2.9488,2728.6,2728.5,8.232]
[1740072268841,2.9488,2728.6,2728.5,11.89701]
[1740072268987,2.9488,2728.6,2728.5,8.232]
[1740072269349,2.9488,2728.6,2728.5,13.164732]
[1740072269624,2.9488,2728.6,2728.5,13.920632]
[1740072269923,0.8006,2729.4,2728.8,3.66454]
[1740072269924,2.9488,2729.3,2728.8,3.66454]
[1740072270128,2.9488,2729.3,2728.7,0.8232]
[1740072270328,0.0472,2729.4,2728.7,0.8232]
[1740072270491,3.71107,2729.4,2728.9,3.66438]
[1740072270819,0.0472,2729.4,2728.7,0.8232]
[1740072271025,3.71101,2729.4,2728.9,3.66447]
[1740072272027,0.0472,2729.4,2729.0,0.7936]
[1740072272227,0.0472,2729.4,2729.1,3.66421]
[1740072272430,0.0472,2729.4,2729.0,0.7936]
[1740072272431,0.0472,2729.4,2729.3,3.66394]
[1740072273308,0.0472,2729.4,2729.3,4.45384]
[1740072274258,0.0472,2729.4,2729.3,5.18555089]
[1740072274569,0.0472,2729.4,2729.3,6.07049998]
[1740072276638,0.0472,2729.4,2729.3,6.25063027]
[1740072279910,0.0472,2729.4,2729.3,6.07049998]
[1740072280940,0.0472,2729.4,2729.3,6.34149998]
[1740072298200,0.0472,2729.4,2729.3,6.52179996]
[1740072299679,0.0472,2729.4,2729.3,6.81053596]
[1740072301676,0.0472,2729.4,2729.3,10.28266669]
[1740072301876,1e-05,2729.4,2729.3,18.97364977]
[1740072302042,1e-05,2729.4,2729.3,19.16751904]
[1740072302242,1e-05,2729.4,2729.3,18.47053596]
[1740072302438,1e-05,2729.4,2729.3,18.74153596]
[1740072303287,0.7721,2730.5,2730.1,3.66279]
[1740072303448,0.7721,2730.5,2730.1,3.93379]
[1740072305887,0.7721,2730.5,2730.1,0.271]
[1740072306187,4.43449,2730.5,2730.1,0.271]
[1740072306884,3.66253,2730.4,2730.1,0.271]
[1740072307072,0.8097,2730.3,2729.9,3.66313]
[1740072307276,0.8097,2730.3,2729.9,3.93406]
[1740072308992,0.8097,2730.3,2730.0,0.18015215]
[1740072309674,0.7966,2730.7,2730.0,1.52531948]
[1740072309874,0.7966,2730.7,2730.4,3.66245]
[1740072310074,0.7966,2730.7,2730.0,1.56194301]
[1740072310277,0.7966,2730.7,2730.4,3.66243]
[1740072311295,0.7966,2730.7,2730.1,0.18015215]
[1740072311459,0.7966,2730.7,2730.2,3.66273]
[1740072311661,0.7966,2730.7,2730.3,3.66253]
[1740072312099,4.45867,2730.7,2730.3,3.66253]
[1740072312297,3.66254,2730.4,2730.1,0.271]
[1740072312461,4.47857,2730.3,2730.1,0.271]
[1740072312662,4.926427,2730.3,2730.1,0.271]
[1740072312862,3.66273,2730.2,2730.1,0.271]
[1740072313264,4.926377,2730.3,2730.1,0.271]
[1740072314180,4.47852,2730.3,2730.1,0.271]
[1740072314777,0.8159,2730.3,2730.1,0.271]
[1740072316598,4.47856,2730.3,2730.1,0.271]
[1740072316797,8.14125,2730.3,2730.1,0.271]
[1740072316967,0.8159,2730.3,2730.1,0.271]
[1740072317701,2.9488,2730.6,2730.4,3.66246]
[1740072317902,0.7943,2730.7,2730.5,3.66233]
[1740072318106,0.7943,2731.0,2730.6,3.66217]
[1740072318411,0.7943,2731.0,2730.4,4.41316]
[1740072318593,3.66186,2730.9,2730.4,4.41306]
[1740072318798,3.66186,2730.9,2730.4,4.854366]
[1740072319099,4.45602,2731.0,2730.4,9.25287611]
[1740072319305,3.66183,2730.9,2730.4,5.59051611]
[1740072319484,3.66183,2730.9,2730.4,4.83981611]
[1740072319871,3.66183,2730.9,2730.4,8.50221611]
[1740072320094,3.66201,2730.8,2730.4,1.17748611]
[1740072320271,3.66201,2730.8,2730.4,0.73618011]
[1740072321103,0.7935,2730.6,2730.2,3.66264]
[1740072321309,0.7935,2730.6,2730.2,7.59631]
[1740072321538,0.7935,2730.6,2730.2,8.31728968]
[1740072321708,0.7935,2730.6,2730.2,5.52568835]
[1740072322006,0.7935,2730.6,2730.3,3.66247]
[1740072322411,0.8171,2730.8,2730.5,3.66233]
[1740072322608,0.8171,2730.8,2730.4,4.43933]
[1740072322799,4.47907,2730.8,2730.4,4.43933]
[1740072322972,0.8171,2730.8,2730.4,4.43933]
[1740072323817,4.47905,2730.8,2730.4,3.66233]
[1740072324510,3.66208,2730.7,2730.2,6.31572835]
[1740072324711,4.47903,2730.8,2730.3,4.33344254]
[1740072325314,0.8171,2730.8,2730.3,4.33344254]
[1740072325476,0.8171,2730.8,2730.5,3.66226]
[1740072325680,0.8171,2730.8,2730.4,3.66238]
[1740072326094,4.47903,2730.8,2730.4,3.66238]
[1740072326593,3.66208,2730.7,2730.3,3.66258]
[1740072326995,4.47903,2730.8,2730.3,3.66258]
[1740072327296,4.47903,2730.8,2730.3,4.61265267]
[1740072327720,4.47903,2730.8,2730.3,8.27517267]
[1740072327914,4.47903,2730.8,2730.3,4.61259267]
[1740072328137,0.8171,2730.8,2730.4,3.66237]
[1740072328334,0.8171,2730.8,2730.3,4.61259267]
[1740072328520,4.47906,2730.8,2730.4,0.63945723]
[1740072329115,4.47906,2730.8,2730.3,3.66247]
[1740072329317,4.47906,2730.8,2730.3,3.6626]
[1740072329505,0.8171,2730.8,2730.3,3.6625]
[1740072329710,0.8171,2730.8,2730.4,3.66236]
[1740072330292,2.9488,2731.2,2730.8,3.66184]
[1740072330486,3.66139,2731.2,2730.8,3.66184]
[1740072330785,4.41374,2731.3,2730.8,3.66184]
[1740072330786,4.41366,2731.3,2730.8,3.66184]
[1740072330987,0.7524,2731.3,2731.0,3.66157]
[1740072331194,0.7524,2731.3,2731.0,3.93257]
[1740072331500,2.9488,2731.9,2731.0,3.93257]
[1740072331501,3.66072,2731.7,2731.3,3.66118]
[1740072331816,0.7582,2731.8,2731.3,3.66117]
[1740072331987,4.41885,2731.8,2731.3,3.66117]
[1740072332390,4.41884,2731.8,2731.3,4.41146133]
[1740072333201,3.66073,2731.7,2731.3,0.75029133]
[1740072333601,3.66073,2731.7,2731.3,4.41154133]
[1740072333797,3.66073,2731.7,2731.3,1.47120093]
[1740072335517,3.66073,2731.7,2731.3,0.75029133]
[1740072335518,3.66101,2731.5,2731.3,0.75029133]
[1740072335831,0.7571,2731.4,2731.2,0.271]
[1740072336425,3.66126,2731.3,2731.2,0.271]
[1740072336622,3.66126,2731.3,2730.8,0.732395]
[1740072336623,3.66142,2731.2,2730.8,0.732395]
[1740072336832,3.66142,2731.2,2731.0,0.271]
[1740072336995,3.66126,2731.3,2731.0,1.0059114]
[1740072337197,0.7571,2731.4,2731.0,1.0059114]
[1740072337526,0.7571,2731.4,2731.0,4.6675614]
[1740072337828,0.7571,2731.4,2731.0,4.3965614]
[1740072337998,0.7571,2731.4,2731.1,0.57152149]
[1740072338334,3.66106,2731.5,2731.1,0.57152149]
[1740072339228,3.66106,2731.5,2731.0,0.7349114]
[1740072339431,3.66126,2731.3,2731.0,0.7349114]
[1740072341328,3.66126,2731.3,2730.9,4.9804435]
[1740072341329,3.66126,2731.3,2730.9,1.3186535]
[1740072341531,3.66126,2731.3,2730.6,8.226]
[1740072341532,3.66187,2730.9,2730.6,8.226]
[1740072341753,0.03648828,2730.8,2730.6,8.226]
[1740072341899,3.0488,2732.0,2730.6,8.226]
[1740072341900,0.8295,2731.5,2730.8,0.8146]
[1740072342227,3.66141,2731.2,2730.8,0.8146]
[1740072342428,3.66112,2731.4,2730.8,0.8146]
[1740072342603,3.66135,2731.3,2730.8,0.8146]
[1740072342809,0.8295,2731.5,2730.8,2.11196]
[1740072343129,4.49055,2731.5,2731.0,3.66155]
[1740072343631,2.9488,2731.8,2730.8,2.11196]
[1740072343632,0.8053,2731.7,2730.8,2.11196]
[1740072343834,0.8053,2731.7,2731.4,3.66107]
[1740072344073,0.8053,2731.7,2731.2,0.7543]
[1740072344338,4.46604,2731.7,2731.2,4.41557]
[1740072344643,3.66092,2731.6,2731.2,0.74736343]
[1740072345434,4.46604,2731.7,2731.2,4.40873343]
[1740072345616,3.66088,2731.6,2731.2,0.74736343]
[1740072345933,4.46604,2731.7,2731.2,0.74736343]
[1740072346658,3.66109,2731.5,2730.9,4.41599]
[1740072346817,3.66109,2731.5,2731.0,1.367335]
[1740072347137,3.66109,2731.5,2731.0,5.75190485]
[1740072347338,3.66109,2731.5,2731.0,2.09028485]
[1740072347538,3.66107,2731.5,2731.0,5.75193485]
[1740072347745,3.66115,2731.4,2731.0,5.75193485]
[1740072347908,3.66107,2731.5,2731.0,5.75193485]
[1740072348458,5.90411139,2734.0,2731.0,5.75193485]
[1740072348459,0.8287,2732.3,2731.5,0.8078]
[1740072348602,0.8287,2732.5,2732.0,3.66024]
[1740072348806,3.65979,2732.4,2732.0,0.271]
[1740072349062,8.134509,2732.4,2732.0,0.271]
[1740072349220,4.474599,2732.4,2732.0,0.271]
[1740072349614,3.65993,2732.3,2732.0,0.271]
[1740072349817,4.48838,2732.5,2732.0,4.73401]
[1740072350044,4.48837,2732.5,2732.0,1.0737]
[1740072350203,4.48837,2732.5,2732.0,5.207344]
[1740072350622,4.48837,2732.5,2732.0,5.207414]
[1740072350821,4.48837,2732.5,2732.0,1.547104]
[1740072350822,0.8287,2732.5,2732.0,1.547104]
[1740072351023,4.48836,2732.5,2732.0,1.547104]
[1740072351346,3.65979,2732.4,2732.0,1.547104]
[1740072351731,0.8287,2732.5,2732.0,2.28160516]
[1740072351932,4.48836,2732.5,2732.0,2.28160516]
[1740072352124,4.48836,2732.5,2732.0,5.94187516]
[1740072352333,3.65989,2732.4,2732.0,2.28160516]
[1740072352538,3.65989,2732.4,2732.0,0.271]
[1740072352539,3.66,2732.3,2732.0,0.271]
[1740072353039,0.7912,2732.1,2731.8,0.271]
[1740072354032,0.7912,2732.1,2731.8,3.93153]
[1740072354226,4.42219,2732.4,2731.9,4.48737]
[1740072354621,4.42219,2732.4,2731.9,0.827]
[1740072354824,3.66005,2732.2,2731.9,0.827]
[1740072355224,4.42219,2732.4,2731.9,0.827]
[1740072355441,4.42219,2732.4,2731.9,1.0110712]
[1740072355631,4.42219,2732.4,2731.9,4.6714012]
[1740072355831,0.7624,2732.4,2731.9,1.0110712]
[1740072356178,4.4222,2732.4,2731.9,4.6714512]
[1740072356479,4.4222,2732.4,2731.9,1.0110712]
[1740072356682,4.4222,2732.4,2732.0,4.15454612]
[1740072357046,4.4222,2732.4,2732.0,4.19114523]
[1740072357242,6.60852,2732.5,2732.0,4.15456612]
[1740072357551,2.9488,2732.5,2732.1,3.66018]
[1740072357751,3.65932,2732.8,2732.3,3.65989]
[1740072357966,3.65947,2732.7,2732.1,3.66008]
[1740072358135,3.65953,2732.6,2732.1,3.66008]
[1740072358741,3.65953,2732.6,2732.1,7.3202]
[1740072358945,3.65953,2732.6,2732.1,3.66008]
[1740072359147,4.44699,2732.7,2732.2,4.026048]
[1740072359464,0.7876,2732.7,2732.2,1.09531017]
[1740072359670,3.65954,2732.6,2732.2,1.09531017]
[1740072360158,3.65954,2732.6,2732.2,4.75534017]
[1740072360527,4.44699,2732.7,2732.2,8.41529017]
[1740072360728,4.44699,2732.7,2732.3,0.84152902]
[1740072360931,3.65955,2732.6,2732.3,0.84152902]
[1740072361340,3.66006,2732.2,2731.9,0.827]
[1740072361541,0.8012,2732.2,2731.8,0.271]
[1740072361740,4.46125,2732.2,2731.8,3.93152]
[1740072361959,2.9488,2732.7,2731.8,0.271]
[1740072362165,3.6599,2732.4,2731.9,3.66038]
[1740072362362,4.48418,2732.5,2732.0,3.66025]
[1740072362542,4.48413,2732.5,2732.0,3.66025]
[1740072362878,3.65992,2732.3,2731.8,3.93151]
[1740072363030,3.65992,2732.3,2731.8,5.19057446]
[1740072364436,3.65992,2732.3,2731.8,1.53006446]
[1740072364635,3.65992,2732.3,2731.9,3.66042]
[1740072365357,4.48413,2732.5,2731.9,3.66042]
[1740072365547,3.65981,2732.4,2731.9,3.66042]
[1740072365763,0.8244,2732.5,2731.8,0.271]
[1740072365988,7.38788,2732.7,2732.2,3.65998]
[1740072366138,7.38788,2732.7,2731.9,0.8313]
[1740072366139,3.7285,2732.7,2732.0,0.8313]
[1740072366469,7.38789,2732.7,2732.2,3.65996]
[1740072366859,7.38789,2732.7,2732.3,3.65988]
[1740072367969,4.43909,2732.7,2732.1,4.09043307]
[1740072368274,3.6596,2732.6,2732.1,4.09043307]
[1740072368457,3.65967,2732.5,2732.1,4.09043307]
[1740072368638,3.65967,2732.5,2732.1,0.43034307]
[1740072369081,3.65967,2732.5,2732.2,0.72805216]
[1740072369272,3.65951,2732.6,2732.2,0.72805216]
[1740072369472,3.65972,2732.5,2732.2,1.65906168]
[1740072370177,3.65979,2732.4,2732.1,0.43034307]
[1740072370678,3.65979,2732.4,2732.0,0.8313]
[1740072370851,3.65972,2732.5,2732.0,4.49155]
[1740072371053,3.65972,2732.5,2732.1,3.69672833]
[1740072371257,3.65972,2732.5,2732.1,3.66013]
[1740072371442,3.65959,2732.6,2732.1,3.66013]
[1740072371642,4.43916,2732.7,2732.2,3.65995]
[1740072372054,4.43916,2732.7,2732.1,5.37043203]
[1740072372055,3.65951,2732.6,2732.1,5.37043203]
[1740072372346,3.65953,2732.6,2732.1,5.37043203]
[1740072372775,3.65953,2732.6,2732.1,5.37036203]
[1740072373448,3.65969,2732.5,2732.1,1.71026203]
[1740072373798,3.65953,2732.6,2732.2,0.69298023]
[1740072374289,3.65981,2732.4,2732.1,1.71026203]
[1740072374449,3.65966,2732.5,2732.1,1.71026203]
[1740072374649,3.6598,2732.4,2732.1,1.71026203]
[1740072376080,3.6598,2732.4,2732.0,1.55924028]
[1740072376477,3.65971,2732.5,2732.0,5.21949028]
[1740072376882,3.65961,2732.6,2732.0,5.21955028]
[1740072377082,4.4391,2732.7,2732.2,3.65998]
[1740072377282,3.65962,2732.6,2732.2,0.52192203]
[1740072377479,3.65975,2732.5,2732.2,0.52192203]
[1740072377683,3.65975,2732.5,2732.0,5.21954028]
[1740072377684,3.65982,2732.4,2732.0,5.21954028]
[1740072378162,0.7797,2732.7,2732.0,5.21954028]
[1740072378488,3.65965,2732.5,2732.3,0.17996157]
[1740072378671,7.31939,2732.5,2732.3,0.17996157]
[1740072378977,7.31941,2732.5,2732.3,0.17996157]
[1740072379181,3.65965,2732.5,2732.3,0.17996157]
[1740072379861,3.65965,2732.5,2732.1,3.66017]
[1740072380062,3.65965,2732.5,2732.1,5.27536103]
[1740072380579,3.65997,2732.3,2732.0,0.271]
[1740072380751,0.8263,2732.4,2732.0,0.271]
[1740072380954,7.31898,2732.7,2732.2,3.65997]
[1740072381150,3.65952,2732.6,2732.1,4.41657]
[1740072381778,3.65972,2732.5,2732.1,0.7564]
[1740072381964,3.65978,2732.4,2732.1,2.12132739]
[1740072382754,3.65978,2732.4,2732.1,0.7564]
[1740072383573,3.65961,2732.6,2732.1,0.7564]
[1740072383751,3.65978,2732.4,2732.0,3.93131]
[1740072384969,3.65967,2732.5,2732.0,3.96790879]
[1740072385165,3.65967,2732.5,2732.0,3.93131]
[1740072385371,3.65967,2732.5,2732.1,0.18018927]
[1740072385594,3.65991,2732.4,2732.1,0.18018927]
[1740072386891,7.31977,2732.4,2732.1,0.18018927]
[1740072387073,3.65986,2732.4,2732.2,0.18018927]
[1740072387802,3.65992,2732.3,2732.2,0.18018927]
[1740072388313,3.66014,2732.2,2732.0,0.271]
[1740072388799,3.65993,2732.3,2732.0,0.271]
[1740072390002,4.43811,2732.4,2732.0,0.271]
[1740072390215,8.098,2732.4,2732.1,0.18023021]
[1740072390892,4.43811,2732.4,2732.1,0.18023021]
[1740072391216,0.7783,2732.4,2732.1,3.84041021]
[1740072391366,0.7783,2732.4,2732.1,3.66018]
[1740072391999,0.7783,2732.4,2732.0,1.0332]
[1740072392000,4.43809,2732.4,2732.0,1.0332]
[1740072392182,0.7783,2732.4,2732.0,1.0332]
[1740072392385,0.8179,2732.7,2732.3,3.65985]
[1740072392591,4.4773,2732.7,2732.3,3.65985]
[1740072393223,4.4773,2732.7,2732.1,3.66012]
[1740072393428,4.4773,2732.7,2732.4,0.18018063]
[1740072394929,4.4773,2732.7,2732.3,3.65991]
[1740072395126,0.8179,2732.7,2732.3,4.46370513]
[1740072395498,4.47729,2732.7,2732.3,4.46370513]
[1740072396020,3.65954,2732.6,2732.3,0.80379513]
[1740072397694,4.47729,2732.7,2732.3,0.80379513]
[1740072398124,3.65953,2732.6,2732.3,0.80379513]
[1740072398899,3.65976,2732.5,2732.1,0.28828841]
[1740072399169,3.65985,2732.4,2732.1,0.28828841]
[1740072399431,3.65967,2732.5,2732.1,0.28828841]
[1740072399730,4.4437,2732.4,2732.1,0.28828841]
[1740072400456,0.7839,2732.4,2732.2,0.18018017]
[1740072400919,4.44376,2732.4,2732.2,0.18018017]
[1740072401717,8.10366,2732.4,2732.0,1.00235788]
[1740072402042,3.66005,2732.2,2731.8,8.988]
[1740072402242,3.66032,2732.0,2731.8,8.222]
[1740072402423,3.66019,2732.1,2731.8,8.222]
[1740072402830,3.66045,2731.9,2731.8,8.222]
[1740072403430,3.66015,2732.2,2731.8,8.222]
[1740072403633,3.66045,2731.9,2731.8,8.222]
[1740072404626,8.09958,2732.0,2731.8,8.222]
[1740072404826,3.66045,2731.9,2731.8,8.222]
[1740072406529,4.43913,2732.0,2731.3,5.19442315]
[1740072406731,3.66059,2731.8,2731.3,5.19442315]
[1740072406933,3.66059,2731.8,2731.3,6.10709447]
[1740072407253,3.66059,2731.8,2731.3,5.30019447]
[1740072408354,3.66059,2731.8,2731.4,0.18002807]
[1740072409350,4.43922,2732.0,2731.4,3.84102807]
[1740072409560,3.66051,2731.9,2731.4,3.661]
[1740072410255,3.66051,2731.9,2731.3,5.30019447]
[1740072410457,3.66051,2731.9,2731.4,3.66112]
[1740072410617,7.32109,2731.9,2731.3,5.30019447]
[1740072411131,3.66059,2731.8,2731.3,5.30019447]
[1740072411523,3.66059,2731.8,2731.3,8.96138447]
[1740072411756,3.66059,2731.8,2731.4,3.66111]
[1740072412623,3.66059,2731.8,2731.3,5.30019447]